[Event "Titled Tuesday Blitz April 25 Early 2023"]
[White "Antonio, Jorge Carlos"]
[Black "Dwilewicz, Katarzyna"]
[WhiteFideId "113190"]
[BlackFideId "1148486"]
[WhiteElo "2247"]
[BlackElo "2065"]
[Result "0-1"]
[Round "10"]
[TimeControl "180+2"]
[Date "2023.04.25"]
[WhiteClock "0:00:39"]
[BlackClock "0:01:31"]

1. d4 {[%clk 0:02:17]}  d5 {[%clk 0:02:58]} 2. Nf3 {[%clk 0:02:15]}  g6 {[%clk 0:02:54]} 3. Bf4 {[%clk 0:02:13]}  Bg7 {[%clk 0:02:54]} 4. e3 {[%clk 0:02:14]}  Nf6 {[%clk 0:02:54]} 5. h4 {[%clk 0:02:14]}  c6 {[%clk 0:02:53]} 6. Bd3 {[%clk 0:02:13]}  Bg4 {[%clk 0:02:49]} 7. Nbd2 {[%clk 0:02:12]}  Nbd7 {[%clk 0:02:49]} 8. c3 {[%clk 0:02:12]}  h5 {[%clk 0:02:45]} 9. O-O {[%clk 0:02:10]}  O-O {[%clk 0:02:44]} 10. Qb3 {[%clk 0:02:10]}  Qb6 {[%clk 0:02:42]} 11. Qxb6 {[%clk 0:02:09]}  Nxb6 {[%clk 0:02:42]} 12. a3 {[%clk 0:02:10]}  Nfd7 {[%clk 0:02:37]} 13. b4 {[%clk 0:02:05]}  a5 {[%clk 0:02:32]} 14. b5 {[%clk 0:01:59]}  c5 {[%clk 0:02:32]} 15. a4 {[%clk 0:01:52]}  Rac8 {[%clk 0:02:30]} 16. Ne5 {[%clk 0:01:41]}  Nxe5 {[%clk 0:02:24]} 17. dxe5 {[%clk 0:01:40]}  Nd7 {[%clk 0:02:21]} 18. e4 {[%clk 0:01:28]}  Nxe5 {[%clk 0:02:14]} 19. Bxe5 {[%clk 0:01:26]}  Bxe5 {[%clk 0:02:13]} 20. Nb1 {[%clk 0:01:19]}  e6 {[%clk 0:01:54]} 21. f3 {[%clk 0:01:14]}  dxe4 {[%clk 0:01:50]} 22. Bxe4 {[%clk 0:01:10]}  Bf5 {[%clk 0:01:50]} 23. Bxb7 {[%clk 0:01:07]}  Rcd8 {[%clk 0:01:49]} 24. Bc6 {[%clk 0:01:02]}  Rd3 {[%clk 0:01:43]} 25. Rc1 {[%clk 0:00:52]}  Bg3 {[%clk 0:01:39]} 26. Ra3 {[%clk 0:00:50]}  Bxh4 {[%clk 0:01:39]} 27. Kh2 {[%clk 0:00:48]}  Bg5 {[%clk 0:01:39]} 28. Rc2 {[%clk 0:00:46]}  h4 {[%clk 0:01:36]} 29. Rb2 {[%clk 0:00:45]}  Bf4+ {[%clk 0:01:36]} 30. Kg1 {[%clk 0:00:43]}  Bg3 {[%clk 0:01:35]} 31. Kf1 {[%clk 0:00:41]}  Rfd8 {[%clk 0:01:31]} 32. b6 {[%clk 0:00:39]}  Rd1+ {[%clk 0:01:30]} 33. Ke2 {[%clk 0:00:39]}  Re1# {[%clk 0:01:31]} 0-1


[Site "https://www.chess.com"]

[Event "Titled Tuesday Blitz April 25 Early 2023"]
[White "Grossboss19"]
[Black "littlepillow2010"]
[WhiteElo "2268"]
[BlackElo "2353"]
[Result "0-1"]
[Round "10"]
[TimeControl "180+2"]
[Date "2023.04.25"]
[WhiteClock "0:01:16"]
[BlackClock "0:01:56"]

1. e4 {[%clk 0:02:57]}  c5 {[%clk 0:02:59]} 2. c4 {[%clk 0:02:56]}  Nc6 {[%clk 0:02:58]} 3. Nc3 {[%clk 0:02:54]}  Nf6 {[%clk 0:02:57]} 4. Nf3 {[%clk 0:02:52]}  e5 {[%clk 0:02:55]} 5. d3 {[%clk 0:02:45]}  h6 {[%clk 0:02:55]} 6. h3 {[%clk 0:02:27]}  d6 {[%clk 0:02:53]} 7. Be3 {[%clk 0:02:26]}  Be6 {[%clk 0:02:52]} 8. Be2 {[%clk 0:02:20]}  Be7 {[%clk 0:02:51]} 9. Nd5 {[%clk 0:02:16]}  Nd4 {[%clk 0:02:47]} 10. Nxd4 {[%clk 0:02:13]}  cxd4 {[%clk 0:02:43]} 11. Bd2 {[%clk 0:02:11]}  Nxd5 {[%clk 0:02:36]} 12. cxd5 {[%clk 0:02:11]}  Bd7 {[%clk 0:02:36]} 13. Bg4 {[%clk 0:02:11]}  O-O {[%clk 0:02:33]} 14. Bxd7 {[%clk 0:02:00]}  Qxd7 {[%clk 0:02:34]} 15. O-O {[%clk 0:02:00]}  f5 {[%clk 0:02:34]} 16. f3 {[%clk 0:01:59]}  f4 {[%clk 0:02:30]} 17. Be1 {[%clk 0:01:55]}  Rf6 {[%clk 0:02:23]} 18. Rf2 {[%clk 0:01:53]}  Rg6 {[%clk 0:02:23]} 19. Rc2 {[%clk 0:01:52]}  Qxh3 {[%clk 0:02:18]} 20. Qe2 {[%clk 0:01:50]}  Bh4 {[%clk 0:02:09]} 21. Bxh4 {[%clk 0:01:43]}  Qxh4 {[%clk 0:02:10]} 22. Rac1 {[%clk 0:01:43]}  Rg3 {[%clk 0:02:01]} 23. Rc8+ {[%clk 0:01:41]}  Rxc8 {[%clk 0:02:00]} 24. Rxc8+ {[%clk 0:01:42]}  Kh7 {[%clk 0:02:01]} 25. Rc7 {[%clk 0:01:38]}  Qg5 {[%clk 0:02:00]} 26. Kf1 {[%clk 0:01:30]}  h5 {[%clk 0:01:59]} 27. Ke1 {[%clk 0:01:21]}  Rxg2 {[%clk 0:01:57]} 28. Qf1 {[%clk 0:01:16]}  Rg1 {[%clk 0:01:56]} 0-1


[Site "https://www.chess.com"]

[Event "Titled Tuesday Blitz April 25 Early 2023"]
[White "Levitan, Caleb Levi"]
[Black "Manon-og, Ramon Jr."]
[WhiteFideId "14332620"]
[BlackFideId "5200776"]
[WhiteElo "1963"]
[BlackElo "2338"]
[Result "0-1"]
[Round "10"]
[TimeControl "180+2"]
[Date "2023.04.25"]
[WhiteClock "0:00:02"]
[BlackClock "0:01:57"]

1. e4 {[%clk 0:03:00]}  c5 {[%clk 0:02:59]} 2. Nf3 {[%clk 0:03:00]}  d6 {[%clk 0:02:59]} 3. d4 {[%clk 0:03:00]}  cxd4 {[%clk 0:03:00]} 4. Nxd4 {[%clk 0:03:00]}  Nf6 {[%clk 0:03:01]} 5. Nc3 {[%clk 0:03:00]}  a6 {[%clk 0:03:02]} 6. Bc4 {[%clk 0:02:57]}  e6 {[%clk 0:03:01]} 7. Bb3 {[%clk 0:02:57]}  b5 {[%clk 0:02:59]} 8. Qf3 {[%clk 0:02:48]}  Qc7 {[%clk 0:02:56]} 9. Bg5 {[%clk 0:02:31]}  Be7 {[%clk 0:02:55]} 10. O-O-O {[%clk 0:02:31]}  b4 {[%clk 0:02:51]} 11. Nce2 {[%clk 0:02:01]}  O-O {[%clk 0:02:50]} 12. e5 {[%clk 0:01:41]}  Bb7 {[%clk 0:02:49]} 13. exd6 {[%clk 0:01:40]}  Bxd6 {[%clk 0:02:45]} 14. Qd3 {[%clk 0:01:38]}  Nd5 {[%clk 0:02:39]} 15. Bh4 {[%clk 0:01:06]}  Nc6 {[%clk 0:02:20]} 16. Bg3 {[%clk 0:01:04]}  Na5 {[%clk 0:02:13]} 17. Bxd6 {[%clk 0:00:37]}  Qxd6 {[%clk 0:02:14]} 18. f3 {[%clk 0:00:24]}  Nxb3+ {[%clk 0:02:12]} 19. Nxb3 {[%clk 0:00:20]}  a5 {[%clk 0:02:10]} 20. Ng3 {[%clk 0:00:19]}  a4 {[%clk 0:02:09]} 21. Nd4 {[%clk 0:00:18]}  Qf4+ {[%clk 0:02:09]} 22. Qd2 {[%clk 0:00:13]}  Qf6 {[%clk 0:02:06]} 23. Ne4 {[%clk 0:00:13]}  Qg6 {[%clk 0:02:04]} 24. h4 {[%clk 0:00:11]}  b3 {[%clk 0:02:05]} 25. h5 {[%clk 0:00:04]}  bxa2 {[%clk 0:02:04]} 26. c3 {[%clk 0:00:01]}  a1=Q+ {[%clk 0:01:59]} 27. Kc2 {[%clk 0:00:01]}  Nb4+ {[%clk 0:02:00]} 28. cxb4 {[%clk 0:00:01]}  Bxe4+ {[%clk 0:01:58]} 29. fxe4 {[%clk 0:00:01]}  Qxe4+ {[%clk 0:01:58]} 30. Kc3 {[%clk 0:00:02]}  Rfc8+ {[%clk 0:01:57]} 0-1


[Site "https://www.chess.com"]

[Event "Titled Tuesday Blitz April 25 Early 2023"]
[White "Singh, Arvinder Preet"]
[Black "Degtiarev, Evgeny"]
[WhiteFideId "5013240"]
[BlackFideId "4149610"]
[WhiteElo "2124"]
[BlackElo "2284"]
[Result "1-0"]
[Round "10"]
[TimeControl "180+2"]
[Date "2023.04.25"]
[WhiteClock "0:00:32"]
[BlackClock "0:00:05"]

1. e4 {[%clk 0:03:00]}  e5 {[%clk 0:02:57]} 2. Nf3 {[%clk 0:03:00]}  Nc6 {[%clk 0:02:57]} 3. Bb5 {[%clk 0:03:00]}  Nf6 {[%clk 0:02:56]} 4. O-O {[%clk 0:03:00]}  Nxe4 {[%clk 0:02:53]} 5. d4 {[%clk 0:03:00]}  Nd6 {[%clk 0:02:53]} 6. Bxc6 {[%clk 0:03:00]}  dxc6 {[%clk 0:02:54]} 7. dxe5 {[%clk 0:03:01]}  Nf5 {[%clk 0:02:55]} 8. Qxd8+ {[%clk 0:03:01]}  Kxd8 {[%clk 0:02:56]} 9. Nc3 {[%clk 0:03:01]}  h6 {[%clk 0:02:55]} 10. h3 {[%clk 0:03:01]}  Bd7 {[%clk 0:02:53]} 11. Rd1 {[%clk 0:03:00]}  Kc8 {[%clk 0:02:53]} 12. b3 {[%clk 0:03:00]}  a5 {[%clk 0:02:51]} 13. a4 {[%clk 0:02:59]}  b6 {[%clk 0:02:50]} 14. Bb2 {[%clk 0:02:50]}  Be6 {[%clk 0:02:47]} 15. g4 {[%clk 0:02:40]}  Ne7 {[%clk 0:02:46]} 16. Nd4 {[%clk 0:02:40]}  Kb7 {[%clk 0:02:43]} 17. f4 {[%clk 0:02:37]}  c5 {[%clk 0:02:35]} 18. Ndb5 {[%clk 0:02:12]}  g6 {[%clk 0:02:19]} 19. Rd2 {[%clk 0:01:59]}  h5 {[%clk 0:02:18]} 20. Ne4 {[%clk 0:01:25]}  hxg4 {[%clk 0:02:15]} 21. Ng5 {[%clk 0:01:25]}  Bd5 {[%clk 0:01:24]} 22. c4 {[%clk 0:01:22]}  Bc6 {[%clk 0:01:22]} 23. e6 {[%clk 0:01:19]}  Rh4 {[%clk 0:01:11]} 24. Nxf7 {[%clk 0:01:12]}  gxh3 {[%clk 0:00:42]} 25. Nd8+ {[%clk 0:01:11]}  Rxd8 {[%clk 0:00:35]} 26. Rxd8 {[%clk 0:01:10]}  h2+ {[%clk 0:00:34]} 27. Kf2 {[%clk 0:01:11]}  h1=Q {[%clk 0:00:23]} 28. Rxh1 {[%clk 0:01:10]}  Rxh1 {[%clk 0:00:20]} 29. Be5 {[%clk 0:01:01]}  Bxb5 {[%clk 0:00:19]} 30. Rxf8 {[%clk 0:00:54]}  Bc6 {[%clk 0:00:18]} 31. Rf7 {[%clk 0:00:52]}  Rh2+ {[%clk 0:00:17]} 32. Kg1 {[%clk 0:00:49]}  Rg2+ {[%clk 0:00:16]} 33. Kf1 {[%clk 0:00:49]}  Nf5 {[%clk 0:00:16]} 34. Rxc7+ {[%clk 0:00:49]}  Ka6 {[%clk 0:00:16]} 35. Rxc6 {[%clk 0:00:49]}  Ne3+ {[%clk 0:00:16]} 36. Ke1 {[%clk 0:00:48]}  Nc2+ {[%clk 0:00:16]} 37. Kd1 {[%clk 0:00:48]}  Ne3+ {[%clk 0:00:16]} 38. Kc1 {[%clk 0:00:48]}  Nf5 {[%clk 0:00:12]} 39. Rc7 {[%clk 0:00:41]}  Rg3 {[%clk 0:00:06]} 40. Kc2 {[%clk 0:00:39]}  Rg2+ {[%clk 0:00:05]} 41. Kc3 {[%clk 0:00:38]}  g5 {[%clk 0:00:05]} 42. e7 {[%clk 0:00:37]}  Nxe7 {[%clk 0:00:04]} 43. Rxe7 {[%clk 0:00:37]}  gxf4 {[%clk 0:00:04]} 44. Bb8 {[%clk 0:00:37]}  Rg3+ {[%clk 0:00:03]} 45. Kb2 {[%clk 0:00:36]}  Rg2+ {[%clk 0:00:04]} 46. Ka3 {[%clk 0:00:37]}  b5 {[%clk 0:00:04]} 47. axb5+ {[%clk 0:00:33]}  Kb6 {[%clk 0:00:05]} 48. Ba7# {[%clk 0:00:32]} 1-0


[Site "https://www.chess.com"]

[Event "Titled Tuesday Blitz April 25 Early 2023"]
[White "Todorovic, Bojan"]
[Black "Stanisz, Patryk"]
[WhiteFideId "917087"]
[BlackFideId "1123106"]
[WhiteElo "2266"]
[BlackElo "2069"]
[Result "0-1"]
[Round "10"]
[TimeControl "180+2"]
[Date "2023.04.25"]
[WhiteClock "0:00:07"]
[BlackClock "0:00:09"]

1. Nf3 {[%clk 0:02:59]}  d5 {[%clk 0:02:59]} 2. g3 {[%clk 0:02:58]}  c6 {[%clk 0:03:00]} 3. Bg2 {[%clk 0:02:58]}  Bf5 {[%clk 0:02:59]} 4. O-O {[%clk 0:02:59]}  e6 {[%clk 0:02:59]} 5. d3 {[%clk 0:02:59]}  h6 {[%clk 0:02:59]} 6. Nbd2 {[%clk 0:02:57]}  Nf6 {[%clk 0:02:58]} 7. b3 {[%clk 0:02:56]}  Be7 {[%clk 0:02:56]} 8. Bb2 {[%clk 0:02:55]}  O-O {[%clk 0:02:56]} 9. c4 {[%clk 0:02:55]}  a5 {[%clk 0:02:53]} 10. Qc2 {[%clk 0:02:52]}  Nbd7 {[%clk 0:02:49]} 11. Rac1 {[%clk 0:02:51]}  Bh7 {[%clk 0:02:49]} 12. Qb1 {[%clk 0:02:48]}  a4 {[%clk 0:02:48]} 13. b4 {[%clk 0:02:44]}  a3 {[%clk 0:02:24]} 14. Bc3 {[%clk 0:02:39]}  Re8 {[%clk 0:02:18]} 15. Qb3 {[%clk 0:02:34]}  Qc7 {[%clk 0:02:09]} 16. Nb1 {[%clk 0:02:29]}  e5 {[%clk 0:02:00]} 17. cxd5 {[%clk 0:02:26]}  Nxd5 {[%clk 0:01:53]} 18. Bd2 {[%clk 0:02:23]}  Qb6 {[%clk 0:01:45]} 19. Nxa3 {[%clk 0:02:19]}  e4 {[%clk 0:01:18]} 20. Nc4 {[%clk 0:02:10]}  Qa7 {[%clk 0:01:17]} 21. dxe4 {[%clk 0:02:04]}  Bxe4 {[%clk 0:01:18]} 22. a3 {[%clk 0:02:01]}  Bf6 {[%clk 0:01:09]} 23. Rfd1 {[%clk 0:01:48]}  Bf5 {[%clk 0:01:09]} 24. Ne3 {[%clk 0:01:28]}  Be6 {[%clk 0:01:02]} 25. Nc4 {[%clk 0:01:00]}  N5b6 {[%clk 0:00:56]} 26. Be3 {[%clk 0:00:54]}  Qa6 {[%clk 0:00:52]} 27. Nfd2 {[%clk 0:00:46]}  Nxc4 {[%clk 0:00:40]} 28. Rxc4 {[%clk 0:00:43]}  Ne5 {[%clk 0:00:29]} 29. Rdc1 {[%clk 0:00:19]}  Nxc4 {[%clk 0:00:29]} 30. Rxc4 {[%clk 0:00:19]}  Bxc4 {[%clk 0:00:30]} 31. Nxc4 {[%clk 0:00:18]}  Rad8 {[%clk 0:00:25]} 32. Bf3 {[%clk 0:00:18]}  Qb5 {[%clk 0:00:24]} 33. Kg2 {[%clk 0:00:17]}  Qf5 {[%clk 0:00:20]} 34. h3 {[%clk 0:00:15]}  Qe6 {[%clk 0:00:20]} 35. Qc2 {[%clk 0:00:14]}  Bg5 {[%clk 0:00:19]} 36. Bb6 {[%clk 0:00:12]}  Ra8 {[%clk 0:00:14]} 37. Na5 {[%clk 0:00:12]}  Qe7 {[%clk 0:00:08]} 38. h4 {[%clk 0:00:12]}  Bf6 {[%clk 0:00:08]} 39. Bc5 {[%clk 0:00:12]}  Qd7 {[%clk 0:00:07]} 40. Nc4 {[%clk 0:00:12]}  Red8 {[%clk 0:00:07]} 41. Nb6 {[%clk 0:00:12]}  Qd2 {[%clk 0:00:06]} 42. Qf5 {[%clk 0:00:10]}  Rab8 {[%clk 0:00:04]} 43. Nc4 {[%clk 0:00:09]}  Qd7 {[%clk 0:00:03]} 44. Qf4 {[%clk 0:00:08]}  Rbc8 {[%clk 0:00:03]} 45. Nb6 {[%clk 0:00:08]}  Qc7 {[%clk 0:00:03]} 46. Nxc8 {[%clk 0:00:08]}  Qxf4 {[%clk 0:00:03]} 47. gxf4 {[%clk 0:00:09]}  Rxc8 {[%clk 0:00:04]} 48. h5 {[%clk 0:00:09]}  Bb2 {[%clk 0:00:05]} 49. a4 {[%clk 0:00:08]}  Ra8 {[%clk 0:00:06]} 50. a5 {[%clk 0:00:09]}  Rd8 {[%clk 0:00:07]} 51. a6 {[%clk 0:00:08]}  bxa6 {[%clk 0:00:07]} 52. Bxc6 {[%clk 0:00:08]}  Ba3 {[%clk 0:00:07]} 53. Bb7 {[%clk 0:00:08]}  Rb8 {[%clk 0:00:07]} 54. Bxa6 {[%clk 0:00:08]}  Bxb4 {[%clk 0:00:08]} 55. Be3 {[%clk 0:00:08]}  Bd6 {[%clk 0:00:07]} 56. Bc4 {[%clk 0:00:07]}  Rb4 {[%clk 0:00:07]} 57. Bd5 {[%clk 0:00:07]}  Bxf4 {[%clk 0:00:07]} 58. Bxf4 {[%clk 0:00:06]}  Rxf4 {[%clk 0:00:08]} 59. Bf3 {[%clk 0:00:05]}  Kf8 {[%clk 0:00:07]} 60. Kg3 {[%clk 0:00:05]}  Rf6 {[%clk 0:00:08]} 61. e3 {[%clk 0:00:06]}  Rb6 {[%clk 0:00:08]} 62. Bg4 {[%clk 0:00:06]}  Ke7 {[%clk 0:00:09]} 63. f4 {[%clk 0:00:06]}  Kf6 {[%clk 0:00:10]} 64. Kf3 {[%clk 0:00:06]}  Rb3 {[%clk 0:00:10]} 65. Bh3 {[%clk 0:00:06]}  Ra3 {[%clk 0:00:11]} 66. Bg4 {[%clk 0:00:07]}  g6 {[%clk 0:00:11]} 67. hxg6 {[%clk 0:00:06]}  fxg6 {[%clk 0:00:12]} 68. Bh3 {[%clk 0:00:06]}  h5 {[%clk 0:00:11]} 69. Kf2 {[%clk 0:00:06]}  Ra2+ {[%clk 0:00:10]} 70. Kf3 {[%clk 0:00:06]}  Rb2 {[%clk 0:00:11]} 71. e4 {[%clk 0:00:07]}  Rb3+ {[%clk 0:00:11]} 72. Kg2 {[%clk 0:00:07]}  h4 {[%clk 0:00:10]} 73. e5+ {[%clk 0:00:07]}  Ke7 {[%clk 0:00:10]} 74. Bg4 {[%clk 0:00:07]}  Rg3+ {[%clk 0:00:09]} 0-1


[Site "https://www.chess.com"]

[Event "Titled Tuesday Blitz April 25 Early 2023"]
[White "Bashkansky, Ethan"]
[Black "White, John S."]
[WhiteFideId "2071533"]
[BlackFideId "2502348"]
[WhiteElo "2302"]
[BlackElo "2035"]
[Result "1-0"]
[Round "10"]
[TimeControl "180+2"]
[Date "2023.04.25"]
[WhiteClock "0:00:29"]
[BlackClock "0:00:04"]

1. d4 {[%clk 0:03:00]}  e6 {[%clk 0:03:00]} 2. c4 {[%clk 0:03:01]}  d5 {[%clk 0:03:01]} 3. Nc3 {[%clk 0:03:01]}  Nf6 {[%clk 0:02:57]} 4. cxd5 {[%clk 0:03:01]}  exd5 {[%clk 0:02:54]} 5. Bg5 {[%clk 0:03:02]}  Be7 {[%clk 0:02:53]} 6. e3 {[%clk 0:03:02]}  h6 {[%clk 0:02:53]} 7. Bh4 {[%clk 0:03:02]}  O-O {[%clk 0:02:50]} 8. Bd3 {[%clk 0:03:02]}  Nc6 {[%clk 0:02:43]} 9. Nge2 {[%clk 0:02:46]}  Nb4 {[%clk 0:02:40]} 10. Bb1 {[%clk 0:02:43]}  Be6 {[%clk 0:02:39]} 11. O-O {[%clk 0:02:42]}  Nd7 {[%clk 0:02:23]} 12. Bxe7 {[%clk 0:02:39]}  Qxe7 {[%clk 0:02:24]} 13. a3 {[%clk 0:02:38]}  Nc6 {[%clk 0:02:22]} 14. b4 {[%clk 0:02:36]}  Qg5 {[%clk 0:02:17]} 15. Nf4 {[%clk 0:02:17]}  Nb6 {[%clk 0:02:06]} 16. Qd3 {[%clk 0:02:03]}  g6 {[%clk 0:01:56]} 17. Nxe6 {[%clk 0:01:58]}  fxe6 {[%clk 0:01:54]} 18. Qxg6+ {[%clk 0:01:48]}  Qxg6 {[%clk 0:01:55]} 19. Bxg6 {[%clk 0:01:48]}  Kg7 {[%clk 0:01:56]} 20. Bd3 {[%clk 0:01:47]}  Ne7 {[%clk 0:01:49]} 21. a4 {[%clk 0:01:39]}  c6 {[%clk 0:01:39]} 22. a5 {[%clk 0:01:37]}  Nd7 {[%clk 0:01:33]} 23. Na4 {[%clk 0:01:27]}  b6 {[%clk 0:01:29]} 24. h3 {[%clk 0:01:20]}  bxa5 {[%clk 0:01:23]} 25. bxa5 {[%clk 0:01:21]}  Rab8 {[%clk 0:01:23]} 26. Rab1 {[%clk 0:01:18]}  e5 {[%clk 0:00:54]} 27. a6 {[%clk 0:01:10]}  e4 {[%clk 0:00:49]} 28. Bc2 {[%clk 0:01:03]}  Nb6 {[%clk 0:00:38]} 29. Nxb6 {[%clk 0:00:56]}  Rxb6 {[%clk 0:00:34]} 30. Rxb6 {[%clk 0:00:55]}  axb6 {[%clk 0:00:34]} 31. Ra1 {[%clk 0:00:56]}  Ra8 {[%clk 0:00:34]} 32. f3 {[%clk 0:00:52]}  exf3 {[%clk 0:00:31]} 33. gxf3 {[%clk 0:00:53]}  b5 {[%clk 0:00:30]} 34. e4 {[%clk 0:00:51]}  Nc8 {[%clk 0:00:25]} 35. exd5 {[%clk 0:00:48]}  cxd5 {[%clk 0:00:26]} 36. Bd3 {[%clk 0:00:46]}  Nd6 {[%clk 0:00:25]} 37. Ra5 {[%clk 0:00:43]}  b4 {[%clk 0:00:20]} 38. Rxd5 {[%clk 0:00:41]}  b3 {[%clk 0:00:16]} 39. Rxd6 {[%clk 0:00:39]}  b2 {[%clk 0:00:12]} 40. Rd7+ {[%clk 0:00:36]}  Kf6 {[%clk 0:00:11]} 41. a7 {[%clk 0:00:36]}  Re8 {[%clk 0:00:08]} 42. Kf2 {[%clk 0:00:33]}  Rc8 {[%clk 0:00:04]} 43. Rb7 {[%clk 0:00:29]} 1-0


[Site "https://www.chess.com"]

[Event "Titled Tuesday Blitz April 25 Early 2023"]
[White "Fernandez Siles, Luis"]
[Black "Necula, Iulian"]
[WhiteFideId "2209420"]
[BlackFideId "1232380"]
[WhiteElo "2195"]
[BlackElo "1790"]
[Result "1-0"]
[Round "10"]
[TimeControl "180+2"]
[Date "2023.04.25"]
[WhiteClock "0:01:14"]
[BlackClock "0:00:43"]

1. d4 {[%clk 0:02:57]}  d6 {[%clk 0:03:00]} 2. Nf3 {[%clk 0:02:56]}  Bg4 {[%clk 0:02:59]} 3. Nbd2 {[%clk 0:02:52]}  g6 {[%clk 0:02:58]} 4. h3 {[%clk 0:02:52]}  Bxf3 {[%clk 0:02:58]} 5. Nxf3 {[%clk 0:02:52]}  Bg7 {[%clk 0:02:58]} 6. Bf4 {[%clk 0:02:47]}  f5 {[%clk 0:02:57]} 7. c3 {[%clk 0:02:34]}  Nf6 {[%clk 0:02:57]} 8. g4 {[%clk 0:02:27]}  fxg4 {[%clk 0:02:51]} 9. hxg4 {[%clk 0:02:26]}  O-O {[%clk 0:02:02]} 10. Ng5 {[%clk 0:02:14]}  Nxg4 {[%clk 0:01:55]} 11. Ne6 {[%clk 0:02:04]}  Qd7 {[%clk 0:01:45]} 12. Nxf8 {[%clk 0:02:02]}  Bxf8 {[%clk 0:01:45]} 13. Bh3 {[%clk 0:02:02]}  h5 {[%clk 0:01:44]} 14. e3 {[%clk 0:01:57]}  e5 {[%clk 0:01:05]} 15. Bxg4 {[%clk 0:01:40]}  hxg4 {[%clk 0:00:58]} 16. dxe5 {[%clk 0:01:28]}  dxe5 {[%clk 0:00:57]} 17. Qb3+ {[%clk 0:01:19]}  Qf7 {[%clk 0:00:46]} 18. Rh8+ {[%clk 0:01:16]}  Kg7 {[%clk 0:00:45]} 19. Rh7+ {[%clk 0:01:13]}  Kf6 {[%clk 0:00:43]} 20. Qxf7# {[%clk 0:01:14]} 1-0


[Site "https://www.chess.com"]

[Event "Titled Tuesday Blitz April 25 Early 2023"]
[White "Kiseleva, Arina"]
[Black "Lach, Aleksandra"]
[WhiteFideId "4164989"]
[BlackFideId "1134299"]
[WhiteElo "1708"]
[BlackElo "2111"]
[Result "1-0"]
[Round "10"]
[TimeControl "180+2"]
[Date "2023.04.25"]
[WhiteClock "0:00:02"]
[BlackClock "0:00:07"]

1. d4 {[%clk 0:03:00]}  f5 {[%clk 0:02:57]} 2. g3 {[%clk 0:02:59]}  Nf6 {[%clk 0:02:57]} 3. Bg2 {[%clk 0:02:59]}  g6 {[%clk 0:02:57]} 4. c3 {[%clk 0:02:58]}  Bg7 {[%clk 0:02:57]} 5. Qb3 {[%clk 0:02:58]}  d5 {[%clk 0:02:57]} 6. Nf3 {[%clk 0:02:47]}  c6 {[%clk 0:02:49]} 7. Bf4 {[%clk 0:02:42]}  Nbd7 {[%clk 0:02:47]} 8. Ne5 {[%clk 0:02:40]}  Nxe5 {[%clk 0:02:41]} 9. Bxe5 {[%clk 0:02:40]}  O-O {[%clk 0:02:41]} 10. O-O {[%clk 0:02:37]}  Ne4 {[%clk 0:02:36]} 11. f3 {[%clk 0:02:20]}  Nd6 {[%clk 0:02:32]} 12. Nd2 {[%clk 0:01:51]}  Be6 {[%clk 0:02:04]} 13. e4 {[%clk 0:01:32]}  Qd7 {[%clk 0:01:21]} 14. Bxg7 {[%clk 0:01:06]}  Kxg7 {[%clk 0:01:22]} 15. e5 {[%clk 0:01:06]}  Nc4 {[%clk 0:00:49]} 16. Nxc4 {[%clk 0:01:05]}  dxc4 {[%clk 0:00:50]} 17. Qc2 {[%clk 0:01:02]}  f4 {[%clk 0:00:50]} 18. Rae1 {[%clk 0:00:47]}  Rf7 {[%clk 0:00:42]} 19. Qd2 {[%clk 0:00:35]}  Raf8 {[%clk 0:00:41]} 20. Re4 {[%clk 0:00:30]}  g5 {[%clk 0:00:34]} 21. gxf4 {[%clk 0:00:19]}  Rxf4 {[%clk 0:00:31]} 22. Kh1 {[%clk 0:00:20]}  Bd5 {[%clk 0:00:29]} 23. Rxf4 {[%clk 0:00:18]}  Rxf4 {[%clk 0:00:30]} 24. Qe3 {[%clk 0:00:16]}  Qf5 {[%clk 0:00:29]} 25. Rf2 {[%clk 0:00:11]}  Kf8 {[%clk 0:00:29]} 26. Kg1 {[%clk 0:00:10]}  h5 {[%clk 0:00:29]} 27. h3 {[%clk 0:00:09]}  e6 {[%clk 0:00:23]} 28. a4 {[%clk 0:00:08]}  Ke7 {[%clk 0:00:23]} 29. a5 {[%clk 0:00:08]}  a6 {[%clk 0:00:24]} 30. Qe2 {[%clk 0:00:06]}  Qg6 {[%clk 0:00:17]} 31. Rf1 {[%clk 0:00:06]}  Kd7 {[%clk 0:00:11]} 32. Qf2 {[%clk 0:00:06]}  Kc7 {[%clk 0:00:11]} 33. Qe2 {[%clk 0:00:06]}  Qf5 {[%clk 0:00:11]} 34. Qe3 {[%clk 0:00:05]}  g4 {[%clk 0:00:10]} 35. hxg4 {[%clk 0:00:04]}  hxg4 {[%clk 0:00:10]} 36. fxg4 {[%clk 0:00:04]}  Rxf1+ {[%clk 0:00:10]} 37. Bxf1 {[%clk 0:00:04]}  Qxg4+ {[%clk 0:00:11]} 38. Kf2 {[%clk 0:00:04]}  Qf5+ {[%clk 0:00:10]} 39. Ke2 {[%clk 0:00:03]}  Qc2+ {[%clk 0:00:10]} 40. Qd2 {[%clk 0:00:03]}  Bf3+ {[%clk 0:00:10]} 41. Ke3 {[%clk 0:00:02]}  Qe4+ {[%clk 0:00:10]} 42. Kf2 {[%clk 0:00:02]}  Bg4 {[%clk 0:00:09]} 43. Bg2 {[%clk 0:00:01]}  Qf5+ {[%clk 0:00:10]} 44. Kg1 {[%clk 0:00:02]}  Qg6 {[%clk 0:00:10]} 45. Qf2 {[%clk 0:00:01]}  Bf5 {[%clk 0:00:11]} 46. Qf3 {[%clk 0:00:01]}  Kb8 {[%clk 0:00:09]} 47. Kf2 {[%clk 0:00:01]}  Ka7 {[%clk 0:00:09]} 48. Qe2 {[%clk 0:00:01]}  Qg5 {[%clk 0:00:09]} 49. Qf3 {[%clk 0:00:02]}  Qd2+ {[%clk 0:00:08]} 50. Qe2 {[%clk 0:00:02]}  Qf4+ {[%clk 0:00:08]} 51. Qf3 {[%clk 0:00:02]}  Qd2+ {[%clk 0:00:08]} 52. Qe2 {[%clk 0:00:03]}  Qxe2+ {[%clk 0:00:09]} 53. Kxe2 {[%clk 0:00:03]}  Kb8 {[%clk 0:00:09]} 54. Ke3 {[%clk 0:00:03]}  Kc7 {[%clk 0:00:10]} 55. Bf1 {[%clk 0:00:03]}  b6 {[%clk 0:00:10]} 56. axb6+ {[%clk 0:00:03]}  Kxb6 {[%clk 0:00:10]} 57. Bxc4 {[%clk 0:00:04]}  a5 {[%clk 0:00:11]} 58. Bb3 {[%clk 0:00:04]}  Kb5 {[%clk 0:00:11]} 59. Bd1 {[%clk 0:00:03]}  a4 {[%clk 0:00:11]} 60. Be2+ {[%clk 0:00:03]}  Ka5 {[%clk 0:00:11]} 61. Bc4 {[%clk 0:00:03]}  Kb6 {[%clk 0:00:11]} 62. Ba2 {[%clk 0:00:03]}  c5 {[%clk 0:00:11]} 63. c4 {[%clk 0:00:02]}  Kc6 {[%clk 0:00:11]} 64. d5+ {[%clk 0:00:02]}  Kc7 {[%clk 0:00:10]} 65. Kf4 {[%clk 0:00:02]}  Bh3 {[%clk 0:00:09]} 66. Kg5 {[%clk 0:00:02]}  Kd7 {[%clk 0:00:10]} 67. Kf6 {[%clk 0:00:02]}  Bg4 {[%clk 0:00:10]} 68. Bb1 {[%clk 0:00:02]}  Bh3 {[%clk 0:00:10]} 69. d6 {[%clk 0:00:02]}  Bg4 {[%clk 0:00:09]} 70. Bg6 {[%clk 0:00:02]}  Be2 {[%clk 0:00:07]} 71. Bc2 {[%clk 0:00:02]}  Bxc4 {[%clk 0:00:07]} 72. Bxa4+ {[%clk 0:00:03]}  Kd8 {[%clk 0:00:07]} 73. Kf7 {[%clk 0:00:03]}  Bd5 {[%clk 0:00:07]} 74. Kf8 {[%clk 0:00:03]}  c4 {[%clk 0:00:08]} 75. Kf7 {[%clk 0:00:03]}  c3 {[%clk 0:00:05]} 76. bxc3 {[%clk 0:00:03]}  Bc4 {[%clk 0:00:06]} 77. Bd1 {[%clk 0:00:02]}  Bd5 {[%clk 0:00:07]} 78. Bg4 {[%clk 0:00:02]} 1-0


[Site "https://www.chess.com"]